Cogmind - Beta 13 @@@ ROGUE MODE // 2024.04.01 @ 15:13:30 Player: Oliser Result: Destroyed by G-34 Mercenary with Small Laser Performance ------------- Evolutions (0) 0 Regions Visited (1) 200 Robots Destroyed (5) 25 Value Destroyed (71) 71 Prototype IDs (0) 0 Alien Tech Used (0) 0 Bonus (0) 0 TOTAL SCORE: 296 Bonus ------- None Cogmind --------- Core Integrity 0/250 Matter 300/300 Energy 95/100 System Corruption 0% Temperature Cool (6) Movement Core (50) Location -10/Materials Parts ------- > --- POWER (1) -------- (None) > --- PROPULSION (2) --- (None) > --- UTILITY (2) ------ Signal Interpreter Improved Terrain Scanner > --- WEAPON (2) ------- (None) > --- INVENTORY (5) ---- Light Ion Engine Aluminum Leg Mining Laser Peak State ------------ > --- POWER ------------ Light Ion Engine > --- PROPULSION ------- Aluminum Leg Aluminum Leg > --- UTILITY ---------- Improved Terrain Scanner Seismic Detector > --- WEAPON ----------- Medium Laser Medium Laser > --- INVENTORY -------- Aluminum Leg Aluminum Leg [Rating: 9] Favorites ----------- Power Light Ion Engine Engine Light Ion Engine Propulsion Aluminum Leg Leg Aluminum Leg Utility Improved Terrain Scanner Device Improved Terrain Scanner Processor Signal Interpreter Weapon Medium Laser Energy Gun Medium Laser Build | -11 -10 ------- Run | Yrd Mat Slots Evolved . | . . Power . | . . Propulsion . | . . Utility . | . . Weapon . | . . Parts Attached 10 | 7 3 Power 1 | 1 . Engine 1 | 1 . Core . | . . Reactor . | . . Propulsion 3 | 2 1 Treads . | . . Leg 3 | 2 1 Wheel . | . . Hover . | . . Flight . | . . Utility 4 | 2 2 Device 3 | 2 1 Storage . | . . Processor 1 | . 1 Hackware . | . . Protection . | . . Artifact . | . . Weapon 2 | 2 . Energy Gun 2 | 2 . Energy Cannon . | . . Ballistic Gun . | . . Ballistic Cannon . | . . Launcher . | . . Special Weapon . | . . Impact Weapon . | . . Slashing Weapon . | . . Piercing Weapon . | . . Special Melee Weapon . | . . Unidentified Prototypes . | . . Parts Lost 6 | . 6 Power 1 | . 1 Propulsion 2 | . 2 Utility 1 | . 1 Weapon 2 | . 2 Highest Loss Streak 5 | . 5 To Critical Strikes . | . . Average Slot Usage (%) 79 | . 79 Engine 8 | . 8 Leg 23 | . 23 Device 14 | . 14 Processor 12 | . 12 Energy Gun 19 | . 19 Naked Turns . | . . Heaviest Build 9 | 9 9 Greatest Support 20 | 20 20 Greatest Overweight (x) . | . . Average Overweight (x) . | . . Largest Inventory Capacity 5 | 5 5 Average Capacity 5 | 5 5 Most Carried 5 | 4 5 Average Carried 2 | 1 3 Final Capacity 5 | 5 5 Final Carried 4 | 4 3 Class Distribution -------------------- 100% | Mutant Dominant Class ---------------- Mutant | -10/Materials Resources | -11 -10 ----------- Run | Yrd Mat Matter Collected 280 | 267 13 Remotely . | . . Salvage Created 123 | 66 57 Parts 11 | 8 3 Haulers Intercepted . | . . Recyclers Shooed . | . . Parts Field Recycled . | . . Retrieved Matter . | . . Parts Self-Destructed . | . . Prevented . | . . Kills | -11 -10 ------- Run | Yrd Mat Combat Hostiles Destroyed 4 | 1 3 Guns 4 | 1 3 Classes Destroyed 3 | 2 1 Tunneler 1 | 1 . Swarmer 3 | . 3 Grunt 1 | 1 . Best Kill Streak 3 | 2 3 Combat Bots Only 3 | 1 3 Max Kills in Single Turn 1 | 1 1 Gunslinging . | . . Exploded . | . . Melee . | . . Uniques/NPCs Destroyed . | . . Combat | -11 -10 -------- Run | Yrd Mat Hostile Shots Fired 121 | 7 114 Missed 38 | 1 37 Damage Taken 718 | 65 653 Core 258 | 10 248 Absorbed by Shields . | . . Core Remaining (%) 96 | 96 . Volleys Fired 19 | 3 16 Largest 2 | 2 2 Hottest 100 | 100 100 Shots Fired 32 | 6 26 Gun 32 | 6 26 Cannon . | . . Launcher . | . . Special . | . . Kinetic . | . . Thermal 32 | 6 26 Explosive . | . . Electromagnetic . | . . Robot Hit Streak 3 | 2 3 Robot Miss Streak 3 | 1 3 Penetration Max . | . . Secondary Targets 1 | . 1 Max Gunslinging Chain 1 | . 1 Shots Hit Robots 14 | 4 10 Core Hits 6 | 3 3 Critical Kills . | . . Critical Parts Destroyed . | . . Critical Strikes 2 | 1 1 Burn 2 | 1 1 Melee Attacks . | . . Impact . | . . Slashing . | . . Piercing . | . . Sneak Attacks . | . . Combat Hostiles . | . . Follow-up Attacks . | . . Damage Inflicted 188 | 63 125 Guns 188 | 63 125 Cannons . | . . Explosions . | . . Melee . | . . Ramming . | . . Kinetic . | . . Thermal 188 | 63 125 Explosive . | . . Electromagnetic . | . . Impact . | . . Slashing . | . . Piercing . | . . Highest Corruption . | . . Average Corruption . | . . Corruption Purged . | . . Corruption Blocked . | . . Overload Shots . | . . Overflow Damage . | . . Projectiles . | . . Explosions . | . . Melee . | . . Knockbacks . | . . Impact . | . . Kinetic . | . . Secondary . | . . Self-Inflicted Damage . | . . Shots . | . . Rammed . | . . Targets Rammed . | . . Kicked . | . . Crushed . | . . Highest Temperature 296 | 135 296 Average Temperature 152 | 69 176 Received Heat Transfer 81 | 36 45 Siege Activations . | . . Robots Corrupted . | . . Combat Hostiles . | . . Parts Fried . | . . Impact Corruptions . | . . Robots Melted . | . . Combat Hostiles . | . . Parts Melted 2 | . 2 Heat Transferred 703 | 259 444 Parts Sabotaged . | . . Parts Stolen . | . . Parts Stripped . | . . Power Chain Reactions . | . . Alert | -11 -10 ------- Run | Yrd Mat Peak Influence 101 | 25 101 Initial 16 | . 16 Average 31 | 13 51 Maximum Alert Level . | . . Low Security (%) 100 | 100 100 Level 1 . | . . Level 2 . | . . Level 3 . | . . Level 4 . | . . Level 5 . | . . High Security . | . . Max Security . | . . Squads Dispatched . | . . Investigation . | . . Extermination . | . . Reinforcement . | . . Assault . | . . Garrison . | . . Intercept . | . . Searches Triggered . | . . Construction Impeded . | . . Haulers Reinforced . | . . Active Scanning Responses . | . . Cargo Convoy Interrupts . | . . Stealth | -11 -10 --------- Run | Yrd Mat Distress Signals 1 | . 1 Communications Jammed . | . . Distress Signals . | . . Times Spotted 15 | 1 14 Peak Tracking Total 9 | 1 9 Tactical Retreats 2 | . 2 Traps | -11 -10 ------- Run | Yrd Mat Traps Triggered . | . . Indirectly . | . . Trap Hack Attempts . | . . Triggered . | . . Disarmed . | . . Reprogrammed . | . . Reused . | . . Traps Extracted . | . . Installed . | . . Triggered . | . . Machines | -11 -10 ---------- Run | Yrd Mat Machines Disabled . | . . Max in Single Turn . | . . Machines Repaired . | . . Machines Dismantled . | . . Machines Sabotaged . | . . Overloaded Fab Kills . | . . Hacking | -11 -10 --------- Run | Yrd Mat Machines Accessed . | . . Terminals . | . . Fabricators . | . . Repair Stations . | . . Recycling Units . | . . Scanalyzers . | . . Garrison Access . | . . Total Hacks . | . . Successful . | . . Failed . | . . Catastrophic . | . . Database Lockouts . | . . Manual . | . . Terminals . | . . Fabricators . | . . Repair Stations . | . . Recycling Units . | . . Scanalyzers . | . . Garrison Access . | . . Terminal Hacks . | . . Fabricator Hacks . | . . Repair Station Hacks . | . . Recycling Unit Hacks . | . . Scanalyzer . | . . Garrison Access Hacks . | . . Unauthorized Hacks . | . . Terminals . | . . Fabricators . | . . Repair Stations . | . . Recycling Units . | . . Scanalyzers . | . . Garrison Access . | . . Data Cores Recovered . | . . Used . | . . Hacking Detections . | . . Full Trace Events . | . . Feedback Events . | . . Feedback Blocked . | . . Robot Schematics Acquired . | . . Robots Built . | . . Authchips . | . . Time . | . . Total Robot Build Rating . | . . Part Schematics Acquired . | . . Parts Built . | . . Authchips . | . . Time . | . . Total Part Build Rating . | . . Parts Repaired . | . . Time . | . . Parts Recycled . | . . Recycled Matter . | . . Retrieved Matter . | . . Retrieved Components . | . . Parts Scanalyzed . | . . Part Schematics Acquired . | . . Parts Damaged . | . . Bothacking | -11 -10 ------------ Run | Yrd Mat Used RIF Installer . | . . Robots Hacked . | . . Non-combat . | . . Combat . | . . Robot Hacks Applied . | . . Relay Couplers Released . | . . Fabnet Peak Effective % . | . . Robots Rewired . | . . Allies Hacked . | . . Hacks Repelled . | . . Allies | -11 -10 -------- Run | Yrd Mat Total Allies . | . . Largest Group . | . . Highest-Rated Group . | . . Highest-Rated Ally . | . . Total Orders . | . . Ally Attacks . | . . Total Damage . | . . Kills . | . . Allies Corrupted . | . . Allies Melted . | . . Intel | -11 -10 ------- Run | Yrd Mat Robot Analysis Total . | . . Derelict Logs Recovered . | . . Drone Launches . | . . Drone Recoveries . | . . Exploration | -11 -10 ------------- Run | Yrd Mat Turns Passed 351 | 187 164 Spaces Moved 249 | 149 100 Core 32 | 26 6 Treads . | . . Legs 217 | 123 94 Wheels . | . . Hover . | . . Flight . | . . Fastest Speed 50 | 50 50 Average Speed 111 | 107 115 Slowest Speed 120 | 120 120 Overloaded Moves . | . . Propulsion Burnouts . | . . Robots Hopped . | . . Cave-ins Triggered . | . . Exploration Rate (%) 16 | 7 26 Regions Visited 1 Branch Regions . Pre-discovered Areas . | . . Known Exits Taken . | . . Unknown Exits Taken 1 | 1 . Scrap Searched . | . . Spaces Dug . | . . Terrain Destroyed . | . . Melee . | . . Projectile . | . . AOE . | . . Terrain Rammed . | . . Walls Destroyed . | . . Machines Disabled . | . . Actions | -11 -10 --------- Run | Yrd Mat Total 291 | 169 122 Wait . | . . Move 248 | 148 100 Hop . | . . Pick Up 12 | 11 1 Fast Attach . | . . Attach 9 | 7 2 Detach 1 | . 1 Swap 1 | . 1 Drop 1 | . 1 Fire 19 | 3 16 Melee . | . . Ram . | . . Kick . | . . Crush . | . . Escape Stasis . | . . Rewire . | . . Trap . | . . Miscellaneous . | . . Route ------- -11/Scrapyard -10/Materials History --------- Turn | Location | Event 2 | -11/Scrapyard | Met Revision 17 62 | -11/Scrapyard | Discovered new exit (range 8) 188 | -11/Scrapyard | Entered Materials 275 | -10/Materials | Core integrity fell below 50% 314 | -10/Materials | Build established: Mutant 329 | -10/Materials | Core integrity fell below 20% 352 | -10/Materials | Destroyed by G-34 Mercenary with Small Laser Last Messages --------------- Acquired Signal Interpreter. T-07 Excavator is excavating. K-01 Serf collects debris. Seismic Detector destroyed. Destroyed Flight Unit. Lgt. Ion Engine melted. Lgt. Assault Rifle melted. S-10 Pest destroyed. Lgt. Ion Engine destroyed. S-10 Pest destroyed. Switching to secondary target: S-10 Pest. Med. Laser destroyed. Aluminum Leg destroyed. S-10 Pest suffers critical hit (Burn). S-10 Pest destroyed. Acquired 13 matter. Med. Laser destroyed. R-06 Scavenger collects Lgt. Ion Engine. K-01 Serf collects debris. Aluminum Leg destroyed. Map ----- +----------------------------------------------------+ | "" #??????#????????????????????????????? | | ###########?????????????????????????? | | # """"" !#?????????????????????????? | | # # ""T"" #?????????????????????????? | | # # ] #?????????????????????????? | | # # #?????????????????????????? | | + %/%""" """ #??##?????????????????????? | | # # """ """ #?????????????????????????? | | # #%""" """ #?????????????????????????? | | # #= +? ??????????????????????? | | # ##########/##?????? ?????????????????? | | # ##???????# #??????# ????????????????? | | # #????????# #?#????? ????????????????? | | # #????????# #?#????? ?????????????????? | | # #???#?#??# #??????? ?????????????????? | | # #????#???# #????#?? ?????????????????? | | # #????????# #??????? ?????????????????? | | # #????????# #????### ?#???????????????? | | # #????????# ###??#?# #?????????????????? | | # # ????? # #????# #?????????????????? | | # ???????+ #??#?# #?????????????????? | | #????????# #????# #?????????????????? | | #?????? ?# ###### #?????????????????# | | + ? ? ???# ## gg#######+######????? | | # ?????# s #????? | | # ?????+ @ #????? | | #? ????# T#???? | | #? ???###### #### #### ##???? | | #??####???????###+###??? #???????????? | | #???????????????? ?????? #???????????? | | + ?????????????????????? ##????? ????? | | #???????????????????????? #???????????? | | #???????????????????????? #???????????? | | #???????????????????????? #???????????? | | #???????????????????????? #???????????? | | #?????????????????????????#???????????? | | #?????????????????????????????????????? | | +?????????????????????????????????????? | | ??????????????????????????????????????? | | ????????????????????????????????????????? | | ????????????????????????????????????????? | | ????????????????????????????????????????? | | ????????????????????????????????????????? | | ????????????????????????????????????????? | | ????????????????????????????????????????? | | ????????????????????????????????????????? | | ????????????????????????????????????????? | | ????????????????????????????????????????? | | | | | +----------------------------------------------------+ Best States ------------- Heat Dissipation 25 Energy Generation 10 Energy Capacity 125 Matter Stores 300 Matter Capacity 300 Sight Range 16 Terrain Scan Range 16 Terrain Scan Density 10 Evasion (%) 55 Item Schematics ----------------- None Robot Schematics ------------------ None Fabricated ------------ Nothing Alien Tech Used ----------------- None Achievements -------------- None Challenges ------------ None Game ------ Seed PrecisionSpreadRouter Manual? 0 Play Time 00:06:14 Cumulative 1.3 hours Start 2024.04.01 @ 15:09:06 End 2024.04.01 @ 15:13:30 Sessions 1 Manual Loads 0 Difficulty Rogue Special Mode None Game No. 3 Rogue 3 Adventurer 0 Explorer 0 Win Type - Total 0 Types 0/0/0/0/0/0/0/0/0 Lore% 3 Gallery% 3 Achievement% 3 Wizard Run 0 Options --------- Layout 1 ASCII 0 Keyboard 0 Movement Arrows Keybinds 0 Fullscreen 1 Font 32/SmallcapsGlow Map View 50x35 Zoom Use 0% Tactical HUD 0 Map Filters NONE Filters NONE Steam 1 RUN: 5e2fa534-a1e6-474c-8738-d5c06a9179ce